{"text_format":"3","workbook":"xlsx","n_sheets":1,"sheets":["Bibliotheksbuchausleihe"],"not_rendered":{"defined_names":4},"read":"whole","date_system":"1900"}

{"sheet":"Bibliotheksbuchausleihe","index":0,"n_rows":9,"n_cols":8,"rows_kept":9,"merged":[[0,1,0,4],[0,5,0,6]]}
[null,"Bibliotheksbuchausleihe",{"$nulls":3},"TAGE BIS ÜBERFÄLLIG: ",null,10]
["Überfällig","SCHÜLER","KONTAKT-E-MAIL-ADRESSE","KONTAKT-TELEFONNUMMER","BUCHTITEL","DATUM DER AUSLEIHE","RÜCKGABEDATUM","TAGE"]
[{"$f":"IFERROR(((Bücher[[#This Row],[DATUM DER AUSLEIHE]]+TagesLimit)<TODAY())*(LEN(Bücher[[#This Row],[RÜCKGABEDATUM]])=0)*(LEN(Bücher[[#This Row],[DATUM DER AUSLEIHE]])>0),0)","v":0},"Marie Krause","jemand@example.com","555-01 00","Unsere kleine Farm",{"$f":"DATE(YEAR(TODAY()),1,14)","v":"2018-01-14"},{"$f":"DATE(YEAR(TODAY()),1,21)","v":"2018-01-21"},{"$f":"IFERROR(IF(Bücher[[#This Row],[RÜCKGABEDATUM]]=\"\",IF(Bücher[[#This Row],[DATUM DER AUSLEIHE]]<>\"\", TODAY()-Bücher[[#This Row],[DATUM DER AUSLEIHE]],\"\"),Bücher[[#This Row],[RÜCKGABEDATUM]]-Bücher[[#This Row],[DATUM DER AUSLEIHE]]), \"\")","v":7}]
[{"$f":"IFERROR(((Bücher[[#This Row],[DATUM DER AUSLEIHE]]+TagesLimit)<TODAY())*(LEN(Bücher[[#This Row],[RÜCKGABEDATUM]])=0)*(LEN(Bücher[[#This Row],[DATUM DER AUSLEIHE]])>0),0)","v":0},"Klaus Schröder","jemand@example.com","555-01 01","Wilbur und Charlotte",{"$f":"DATE(YEAR(TODAY()),2,15)","v":"2018-02-15"},{"$f":"DATE(YEAR(TODAY()),2,18)","v":"2018-02-18"},{"$f":"IFERROR(IF(Bücher[[#This Row],[RÜCKGABEDATUM]]=\"\",IF(Bücher[[#This Row],[DATUM DER AUSLEIHE]]<>\"\", TODAY()-Bücher[[#This Row],[DATUM DER AUSLEIHE]],\"\"),Bücher[[#This Row],[RÜCKGABEDATUM]]-Bücher[[#This Row],[DATUM DER AUSLEIHE]]), \"\")","v":3}]
[{"$f":"IFERROR(((Bücher[[#This Row],[DATUM DER AUSLEIHE]]+TagesLimit)<TODAY())*(LEN(Bücher[[#This Row],[RÜCKGABEDATUM]])=0)*(LEN(Bücher[[#This Row],[DATUM DER AUSLEIHE]])>0),0)","v":0},"Karl Kadenbach","jemand@example.com","555-01 02","Milos ganz und gar unmögliche Reise",{"$f":"DATE(YEAR(TODAY()),2,17)","v":"2018-02-17"},{"$f":"DATE(YEAR(TODAY()),2,22)","v":"2018-02-22"},{"$f":"IFERROR(IF(Bücher[[#This Row],[RÜCKGABEDATUM]]=\"\",IF(Bücher[[#This Row],[DATUM DER AUSLEIHE]]<>\"\", TODAY()-Bücher[[#This Row],[DATUM DER AUSLEIHE]],\"\"),Bücher[[#This Row],[RÜCKGABEDATUM]]-Bücher[[#This Row],[DATUM DER AUSLEIHE]]), \"\")","v":5}]
[{"$f":"IFERROR(((Bücher[[#This Row],[DATUM DER AUSLEIHE]]+TagesLimit)<TODAY())*(LEN(Bücher[[#This Row],[RÜCKGABEDATUM]])=0)*(LEN(Bücher[[#This Row],[DATUM DER AUSLEIHE]])>0),0)","v":0},"Ernst Lötzsch","jemand@example.com","555-01 03","Frau Frisby und die Ratten von Nimh",{"$f":"DATE(YEAR(TODAY()),2,17)","v":"2018-02-17"},{"$f":"DATE(YEAR(TODAY()),2,25)","v":"2018-02-25"},{"$f":"IFERROR(IF(Bücher[[#This Row],[RÜCKGABEDATUM]]=\"\",IF(Bücher[[#This Row],[DATUM DER AUSLEIHE]]<>\"\", TODAY()-Bücher[[#This Row],[DATUM DER AUSLEIHE]],\"\"),Bücher[[#This Row],[RÜCKGABEDATUM]]-Bücher[[#This Row],[DATUM DER AUSLEIHE]]), \"\")","v":8}]
[{"$f":"IFERROR(((Bücher[[#This Row],[DATUM DER AUSLEIHE]]+TagesLimit)<TODAY())*(LEN(Bücher[[#This Row],[RÜCKGABEDATUM]])=0)*(LEN(Bücher[[#This Row],[DATUM DER AUSLEIHE]])>0),0)","v":0},"Leni Martin","jemand@example.com","555-01 04","Matilda",{"$f":"DATE(YEAR(TODAY()),2,18)","v":"2018-02-18"},{"$f":"DATE(YEAR(TODAY()),2,28)","v":"2018-02-28"},{"$f":"IFERROR(IF(Bücher[[#This Row],[RÜCKGABEDATUM]]=\"\",IF(Bücher[[#This Row],[DATUM DER AUSLEIHE]]<>\"\", TODAY()-Bücher[[#This Row],[DATUM DER AUSLEIHE]],\"\"),Bücher[[#This Row],[RÜCKGABEDATUM]]-Bücher[[#This Row],[DATUM DER AUSLEIHE]]), \"\")","v":10}]
[{"$f":"IFERROR(((Bücher[[#This Row],[DATUM DER AUSLEIHE]]+TagesLimit)<TODAY())*(LEN(Bücher[[#This Row],[RÜCKGABEDATUM]])=0)*(LEN(Bücher[[#This Row],[DATUM DER AUSLEIHE]])>0),0)","v":1},"Helga Schustereit","jemand@example.com","555-01 05","Die Chroniken von Narnia",{"$f":"DATE(YEAR(TODAY()),1,23)","v":"2018-01-23"},null,{"$f":"IFERROR(IF(Bücher[[#This Row],[RÜCKGABEDATUM]]=\"\",IF(Bücher[[#This Row],[DATUM DER AUSLEIHE]]<>\"\", TODAY()-Bücher[[#This Row],[DATUM DER AUSLEIHE]],\"\"),Bücher[[#This Row],[RÜCKGABEDATUM]]-Bücher[[#This Row],[DATUM DER AUSLEIHE]]), \"\")","v":162}]
[{"$f":"IFERROR(((Bücher[[#This Row],[DATUM DER AUSLEIHE]]+TagesLimit)<TODAY())*(LEN(Bücher[[#This Row],[RÜCKGABEDATUM]])=0)*(LEN(Bücher[[#This Row],[DATUM DER AUSLEIHE]])>0),0)","v":0},"Leonie Briegel","jemand@example.com","555-01 06","Die Hexe vom schwarzen See",{"$f":"TODAY()","v":"2018-07-04"},null,{"$f":"IFERROR(IF(Bücher[[#This Row],[RÜCKGABEDATUM]]=\"\",IF(Bücher[[#This Row],[DATUM DER AUSLEIHE]]<>\"\", TODAY()-Bücher[[#This Row],[DATUM DER AUSLEIHE]],\"\"),Bücher[[#This Row],[RÜCKGABEDATUM]]-Bücher[[#This Row],[DATUM DER AUSLEIHE]]), \"\")","v":0}]